fUST/lending_fUST_20250202
["ID","MTS","AMOUNT","RATE_DAILY","PERIOD"]
[351223295,1738447837248,-500.0,0.00016438,2]
[351223296,1738447837258,-1000.0,0.00016438,2]
[351223297,1738447837267,-521.80205614,0.00016438,2]
[351223298,1738447837277,-500.0,0.00016438,2]
[351223299,1738447837287,-500.0,0.00016438,2]
[351223300,1738447837298,-406.2360726,0.00016438,2]
[351223301,1738447837308,-500.0,0.00016438,2]
[351223302,1738447837317,-564.02,0.00016438,2]
[351223303,1738447837326,-500.0,0.00016438,2]
[351223304,1738447837336,-500.0,0.00016438,2]
[351223305,1738447837345,-500.0,0.00016438,2]
[351223306,1738447837354,-500.0,0.00016438,2]
[351223307,1738447837363,-500.0,0.00016438,2]
[351223308,1738447837373,-500.0,0.00016438,2]
[351223309,1738447837382,-521.46303335,0.00016438,2]
[351223310,1738447837391,-500.0,0.00016438,2]
[351223311,1738447837400,-500.0,0.00016438,2]
[351223312,1738447837410,-500.0,0.00016438,2]
[351223313,1738447837419,-594.77925672,0.00016438,2]
[351223314,1738447837428,-500.0,0.00016438,2]
[351223315,1738447837437,-500.0,0.00016438,2]
[351223316,1738447837450,-501.16203321,0.00016438,2]
[351223317,1738447837459,-500.0,0.00016438,2]
[351223318,1738447837468,-504.14015951,0.00016438,2]
[351223319,1738447837477,-612.41,0.00016438,2]
[351223321,1738447837486,-500.0,0.00016438,2]
[351223323,1738447837495,-500.0,0.00016438,2]
[351223325,1738447837509,-500.0,0.00016438,2]
[351223327,1738447837518,-500.0,0.00016438,2]
[351223329,1738447837527,-500.0,0.00016438,2]
[351223331,1738447837536,-500.0,0.00016438,2]
[351223332,1738447837547,-500.0,0.00016438,2]
[351223333,1738447837556,-503.13950756,0.00016438,2]
[351223334,1738447837566,-501.21533099,0.00016438,2]
[351223335,1738447837576,-500.0,0.00016438,2]
[351223336,1738447837586,-500.0,0.00016438,2]
[351223337,1738447837595,-297.22734942,0.00016438,2]
[351223338,1738447837605,-500.0,0.00016438,2]
[351223339,1738447837615,-500.0,0.00016438,2]
[351223340,1738447837624,-500.0,0.00016438,2]
[351223341,1738447837633,-500.0,0.00016438,2]
[351223342,1738447837642,-500.0,0.00016438,2]
[351223343,1738447837651,-500.0,0.00016438,2]
[351223344,1738447837661,-503.35757614,0.00016438,2]
[351223345,1738447837672,-500.0,0.00016438,2]
[351223346,1738447837681,-504.28223705,0.00016438,2]
[351223347,1738447837691,-500.0,0.00016438,2]
[351223348,1738447837700,-532.7560017,0.00016438,2]
[351223349,1738447837710,-500.0,0.00016438,2]
[351223350,1738447837719,-500.0,0.00016438,2]
[351223351,1738447837729,-500.0,0.00016438,2]
[351223352,1738447837738,-500.0,0.00016438,2]
[351223353,1738447837747,-59.43170248,0.00016438,2]
[351223355,1738447837945,-440.56829752,0.00016438,2]
[351223356,1738447837955,-500.0,0.00016438,2]
[351223357,1738447837964,-500.0,0.00016438,2]
[351223358,1738447837974,-500.0,0.00016438,2]
[351223359,1738447837988,-500.0,0.00016438,2]
[351223360,1738447838002,-500.0,0.00016438,2]
[351223361,1738447838015,-500.0,0.00016438,2]
[351223362,1738447838028,-500.0,0.00016438,2]
[351223363,1738447838040,-500.0,0.00016438,2]
[351223364,1738447838050,-500.0,0.00016438,2]
[351223365,1738447838064,-500.0,0.00016438,2]
[351223366,1738447838075,-500.0,0.00016438,2]
[351223367,1738447838088,-242.88276468,0.00016438,2]
[351223368,1738447838100,-500.0,0.00016438,2]
[351223369,1738447838113,-500.0,0.00016438,2]
[351223370,1738447838125,-500.0,0.00016438,2]
[351223371,1738447838137,-500.0,0.00016438,2]
[351223372,1738447838150,-500.0,0.00016438,2]
[351223373,1738447838164,-500.0,0.00016438,2]
[351223374,1738447838177,-500.0,0.00016438,2]
[351223375,1738447838189,-500.0,0.00016438,2]
[351223376,1738447838202,-500.0,0.00016438,2]
[351223377,1738447838213,-500.0,0.00016438,2]
[351223378,1738447838225,-500.0,0.00016438,2]
[351223379,1738447838239,-500.81490185,0.00016438,2]
[351223380,1738447838252,-500.0,0.00016438,2]
[351223381,1738447838265,-254.85382245,0.00016438,2]
[351223382,1738447838280,-245.14617755,0.00016438,2]
[351223383,1738447838291,-411.03,0.00016438,2]
[351223384,1738447838302,-363.82382245,0.00016438,2]
[351223385,1738447838317,-136.17617755,0.00016438,2]
[351223386,1738447838328,-312.17352887,0.00016438,2]
[351223387,1738447838341,-500.0,0.00016438,2]
[351223388,1738447838353,-500.0,0.00016438,2]
[351223389,1738447838365,-500.0,0.00016438,2]
[351223390,1738447838377,-506.00293791,0.00016438,2]
[351223391,1738447838390,-500.0,0.00016438,2]
[351223392,1738447838403,-500.0,0.00016438,2]
[351223393,1738447838417,-500.0,0.00016438,2]
[351223394,1738447838430,-500.0,0.00016438,2]
[351223395,1738447838446,-522.86086598,0.00016438,2]
[351223396,1738447838456,-500.0,0.00016438,2]
[351223397,1738447838467,-500.0,0.00016438,2]
[351223398,1738447838477,-500.0,0.00016438,2]
[351223399,1738447838489,-500.0,0.00016438,2]
[351223400,1738447838501,-500.0,0.00016438,2]
[351223401,1738447838519,-500.0,0.00016438,2]
[351223402,1738447838532,-500.0,0.00016438,2]
[351223403,1738447838544,-500.0,0.00016438,2]
[351223404,1738447838555,-500.0,0.00016438,2]
[351223405,1738447838567,-500.0,0.00016438,2]
[351223406,1738447838578,-500.0,0.00016438,2]
[351223407,1738447838591,-500.0,0.00016438,2]
[351223408,1738447838603,-500.0,0.00016438,2]
[351223409,1738447838614,-500.0,0.00016438,2]
[351223410,1738447838625,-379.44993432,0.00016438,2]
[351223411,1738447838636,-500.0,0.00016438,2]
[351223412,1738447838647,-500.0,0.00016438,2]
[351223413,1738447838658,-500.0,0.00016438,2]
[351223414,1738447838671,-507.11993169,0.00016438,2]
[351223415,1738447838682,-258.75745228,0.00016438,2]
[351223416,1738447838696,-500.0,0.00016438,2]
[351223417,1738447838707,-500.0,0.00016438,2]
[351223418,1738447838720,-500.0,0.00016438,2]
[351223419,1738447838731,-500.0,0.00016438,2]
[351223420,1738447838743,-500.0,0.00016438,2]
[351223421,1738447838756,-502.30328642,0.00016438,2]
[351223422,1738447838767,-500.0,0.00016438,2]
[351223423,1738447838779,-500.0,0.00016438,2]
[351223424,1738447838789,-500.0,0.00016438,2]
[351223425,1738447838801,-500.0,0.00016438,2]
[351223426,1738447838812,-500.0,0.00016438,2]
[351223427,1738447838823,-500.0,0.00016438,2]
[351223428,1738447838838,-500.0,0.00016438,2]
[351223429,1738447838850,-500.0,0.00016438,2]
[351223430,1738447838861,-500.0,0.00016438,2]
[351223431,1738447838872,-500.0,0.00016438,2]
[351223432,1738447838884,-500.0,0.00016438,2]
[351223433,1738447838896,-500.0,0.00016438,2]
[351223434,1738447838908,-500.0,0.00016438,2]
[351223435,1738447838919,-500.0,0.00016438,2]
[351223436,1738447838931,-500.0,0.00016438,2]
[351223437,1738447838943,-500.0,0.00016438,2]
[351223438,1738447838954,-500.0,0.00016438,2]
[351223439,1738447838965,-500.0,0.00016438,2]
[351223440,1738447838977,-500.0,0.00016438,2]
[351223441,1738447838989,-500.0,0.00016438,2]
[351223442,1738447839000,-500.0,0.00016438,2]
[351223443,1738447839012,-500.0,0.00016438,2]
[351223444,1738447839023,-505.69561747,0.00016438,2]
[351223445,1738447839034,-500.0,0.00016438,2]
[351223446,1738447839045,-500.0,0.00016438,2]
[351223447,1738447839056,-500.0,0.00016438,2]
[351223448,1738447839068,-500.0,0.00016438,2]
[351223449,1738447839079,-500.0,0.00016438,2]
[351223450,1738447839090,-500.0,0.00016438,2]
[351223451,1738447839102,-500.0,0.00016438,2]
[351223452,1738447839114,-500.0,0.00016438,2]
[351223453,1738447839126,-500.0,0.00016438,2]
[351223454,1738447839138,-500.0,0.00016438,2]
[351223455,1738447839149,-500.0,0.00016438,2]
[351223456,1738447839161,-500.0,0.00016438,2]
[351223457,1738447839174,-503.7740193,0.00016438,2]
[351223458,1738447839185,-426.13369101,0.00016438,2]
[351223459,1738447839198,-500.0,0.00016438,2]
[351223460,1738447839208,-500.0,0.00016438,2]
[351223461,1738447839218,-649.86,0.00016438,2]
[351223462,1738447839228,-501.87035283,0.00016438,2]
[351223463,1738447839238,-500.0,0.00016438,2]
[351223464,1738447839248,-500.0,0.00016438,2]
[351223465,1738447839258,-2056.33,0.00016438,2]
[351223466,1738447839425,-500.0,0.00016438,2]
[351223467,1738447839442,-500.0,0.00016438,2]
[351223468,1738447839452,-500.0,0.00016438,2]
[351223469,1738447839462,-500.0,0.00016438,2]
[351223470,1738447839471,-500.0,0.00016438,2]
[351223471,1738447839481,-500.0,0.00016438,2]
[351223472,1738447839490,-500.0,0.00016438,2]
[351223473,1738447839501,-500.0,0.00016438,2]
[351223474,1738447839515,-386.46625524,0.00016438,2]
[351223475,1738447839524,-500.0,0.00016438,2]
[351223476,1738447839535,-500.0,0.00016438,2]
[351223477,1738447839544,-520.23071716,0.00016438,2]
[351223478,1738447839554,-500.0,0.00016438,2]
[351223479,1738447839563,-792.25,0.00016438,2]
[351223480,1738447839573,-792.25,0.00016438,2]
[351223481,1738447839584,-792.25,0.00016438,2]
[351223482,1738447839593,-792.25,0.00016438,2]
[351223483,1738447839603,-500.0,0.00016438,2]
[351223484,1738447839612,-792.25,0.00016438,2]
[351223485,1738447839622,-792.25,0.00016438,2]
[351223486,1738447839631,-792.25,0.00016438,2]
[351223487,1738447839641,-792.25,0.00016438,2]
[351223488,1738447839651,-270.46943678,0.00016438,2]
[351223489,1738447839661,-792.25,0.00016438,2]
[351223491,1738447839672,-792.25,0.00016438,2]
[351223492,1738447839682,-500.0,0.00016438,2]
[351223493,1738447839694,-792.25,0.00016438,2]
[351223494,1738447839703,-500.0,0.00016438,2]
[351223495,1738447839717,-958.06,0.00016438,2]
[351223496,1738447839726,-502.46122873,0.00016438,2]
[351223497,1738447839736,-500.0,0.00016438,2]
[351223498,1738447839746,-503.95237417,0.00016438,2]
[351223499,1738447839755,-500.0,0.00016438,2]
[351223500,1738447839765,-500.0,0.00016438,2]
[351223501,1738447839774,-151.0,0.00016438,2]
[351223502,1738447839783,-500.0,0.00016438,2]
[351223503,1738447839793,-151.0,0.00016438,2]
[351223504,1738447839803,-500.0,0.00016438,2]
[351223505,1738447839813,-500.0,0.00016438,2]
[351223506,1738447839822,-500.0,0.00016438,2]
[351223507,1738447839832,-500.0,0.00016438,2]
[351223508,1738447839841,-500.0,0.00016438,2]
[351223509,1738447839851,-500.0,0.00016438,2]
[351223510,1738447839860,-617.79877822,0.00016438,2]
[351223511,1738447839870,-500.0,0.00016438,2]
[351223512,1738447839879,-500.0,0.00016438,2]
[351223513,1738447839889,-500.68353555,0.00016438,2]
[351223514,1738447839899,-500.0,0.00016438,2]
[351223515,1738447839908,-500.0,0.00016438,2]
[351223516,1738447839918,-500.0,0.00016438,2]
[351223517,1738447839929,-550.35107339,0.00016438,2]
[351223518,1738447839938,-500.0,0.00016438,2]
[351223519,1738447839950,-500.0,0.00016438,2]
[351223520,1738447839959,-500.0,0.00016438,2]
[351223522,1738447839968,-552.53851737,0.00016438,2]
[351223524,1738447839978,-500.0,0.00016438,2]
[351223526,1738447839987,-500.0,0.00016438,2]
[351223527,1738447839996,-500.0,0.00016438,2]
[351223529,1738447840006,-500.0,0.00016438,2]
[351223530,1738447840015,-500.0,0.00016438,2]
[351223531,1738447840025,-500.0,0.00016438,2]
[351223532,1738447840034,-500.28986226,0.00016438,2]
[351223533,1738447840044,-500.0,0.00016438,2]
[351223534,1738447840053,-500.0,0.00016438,2]
[351223535,1738447840063,-500.0,0.00016438,2]
[351223536,1738447840073,-500.0,0.00016438,2]
[351223537,1738447840082,-500.0,0.00016438,2]
[351223538,1738447840091,-742.59,0.00016438,2]
[351223539,1738447840101,-500.68510758,0.00016438,2]
[351223540,1738447840110,-504.49697437,0.00016438,2]
[351223541,1738447840119,-500.0,0.00016438,2]
[351223542,1738447840130,-500.0,0.00016438,2]
[351223543,1738447840140,-500.0,0.00016438,2]
[351223544,1738447840150,-501.05646591,0.00016438,2]
[351223545,1738447840159,-500.0,0.00016438,2]
[351223546,1738447840169,-651.54,0.00016438,2]
[351223547,1738447840179,-500.0,0.00016438,2]
[351223548,1738447840188,-500.0,0.00016438,2]
[351223549,1738447840200,-501.10928734,0.00016438,2]
[351223550,1738447840209,-500.0,0.00016438,2]
[351223551,1738447840219,-500.0,0.00016438,2]
[351223552,1738447840228,-657.73,0.00016438,2]
[351223553,1738447840238,-503.84730863,0.00016438,2]
[351223555,1738447840248,-500.0,0.00016438,2]
[351223556,1738447840257,-550.33,0.00016438,2]
[351223557,1738447840266,-502.08962733,0.00016438,2]
[351223558,1738447840276,-238.50238396,0.00016438,2]
[351223559,1738447840286,-500.0,0.00016438,2]
[351223560,1738447840295,-151.0,0.00016438,2]
[351223561,1738447840304,-500.0,0.00016438,2]
[351223562,1738447840314,-500.0,0.00016438,2]
[351223563,1738447840324,-500.0,0.00016438,2]
[351223564,1738447840333,-3032.87,0.00016438,2]
[351223565,1738447840343,-500.0,0.00016438,2]
[351223566,1738447840353,-500.0,0.00016438,2]
[351223567,1738447840362,-500.0,0.00016438,2]
[351223568,1738447840371,-697.98,0.00016438,2]
[351223569,1738447840381,-500.0,0.00016438,2]
[351223570,1738447840390,-500.0,0.00016438,2]
[351223571,1738447840400,-500.0,0.00016438,2]
[351223572,1738447840410,-151.19787,0.00016438,2]
[351223573,1738447840419,-500.0,0.00016438,2]
[351223574,1738447840428,-500.39477218,0.00016438,2]
[351223575,1738447840437,-500.0,0.00016438,2]
[351223576,1738447840449,-500.0,0.00016438,2]
[351223577,1738447840458,-500.0,0.00016438,2]
[351223578,1738447840468,-500.0,0.00016438,2]
[351223579,1738447840477,-919.44,0.00016438,2]
[351223580,1738447840487,-500.0,0.00016438,2]
[351223581,1738447840498,-500.0,0.00016438,2]
[351223582,1738447840512,-500.0,0.00016438,2]
[351223583,1738447840522,-500.0,0.00016438,2]
[351223584,1738447840532,-500.0,0.00016438,2]
[351223585,1738447840544,-500.0,0.00016438,2]
[351223586,1738447840553,-390.39197445,0.00016438,2]
[351223587,1738447840563,-500.0,0.00016438,2]
[351223588,1738447840572,-690.22,0.00016438,2]
[351223589,1738447840582,-500.0,0.00016438,2]
[351223590,1738447840592,-500.0,0.00016438,2]
[351223591,1738447840601,-500.0,0.00016438,2]
[351223592,1738447840610,-500.0,0.00016438,2]
[351223593,1738447840620,-2099.35,0.00016438,2]
[351223594,1738447840629,-500.0,0.00016438,2]
[351223595,1738447840638,-500.0,0.00016438,2]
[351223596,1738447840647,-4808.22,0.00016438,2]
[351223597,1738447840657,-207.54415717,0.00016438,2]
[351223598,1738447840666,-500.0,0.00016438,2]
[351223599,1738447840676,-500.0,0.00016438,2]
[351223600,1738447840685,-500.0,0.00016438,2]
[351223601,1738447840696,-500.0,0.00016438,2]
[351223602,1738447840705,-500.0,0.00016438,2]
[351223603,1738447840714,-500.0,0.00016438,2]
[351223604,1738447840723,-180.22728407,0.00016475,2]
[351223605,1738447840732,-792.25,0.00016573,2]
[351223606,1738447840741,-792.25,0.00016573,2]
[351223607,1738447840750,-151.0,0.00016574,2]
[351223608,1738447840759,-151.0,0.00016574,2]
[351223609,1738447840768,-792.25,0.00016574,2]
[351223610,1738447840777,-792.25,0.00016574,2]
[351223611,1738447840786,-500.0,0.00016575,2]
[351223612,1738447840795,-500.0,0.00016575,2]
[351223613,1738447840804,-151.0,0.00016575,2]
[351223614,1738447840813,-500.0,0.00016575,2]
[351223615,1738447840823,-500.0,0.00016575,2]
[351223616,1738447840832,-500.0,0.00016575,2]
[351223617,1738447840841,-500.0,0.00016575,2]
[351223618,1738447840850,-500.0,0.00016575,2]
[351223619,1738447840859,-500.0,0.00016575,2]
[351223620,1738447840869,-159.9849181,0.00016575,2]
[351223621,1738447840879,-500.0,0.00016575,2]
[351223622,1738447840889,-500.0,0.00016575,2]
[351223623,1738447840898,-500.0,0.00016575,2]
[351223624,1738447840908,-500.0,0.00016575,2]
[351223625,1738447840917,-500.0,0.00016575,2]
[351223626,1738447840926,-600.28446814,0.00016575,2]
[351223627,1738447840935,-616.43,0.00016575,2]
[351223628,1738447840949,-500.0,0.00016575,2]
[351223629,1738447840959,-500.0,0.00016575,2]
[351223630,1738447840968,-229.84068624,0.00016575,2]
[351223631,1738447840978,-500.0,0.00016575,2]
[351223632,1738447840987,-500.0,0.00016575,2]
[351223633,1738447840997,-500.0,0.00016575,2]
[351223634,1738447841006,-500.0,0.00016575,2]
[351223635,1738447841015,-500.0,0.00016575,2]
[351223636,1738447841025,-240.54392637,0.00016575,2]
[351223637,1738447841035,-500.0,0.00016575,2]
[351223638,1738447841044,-280.0,0.00016575,2]
[351223639,1738447841054,-198.94324355,0.00016575,2]
[351223640,1738447841064,-500.0,0.00016575,2]
[351223641,1738447841073,-500.0,0.00016575,2]
[351223642,1738447841082,-500.0,0.00016575,2]
[351223643,1738447841091,-500.0,0.00016575,2]
[351223644,1738447841100,-500.0,0.00016575,2]
[351223645,1738447841109,-500.0,0.00016575,2]
[351223646,1738447841118,-649.86,0.00016575,2]
[351223647,1738447841127,-2056.33,0.00016575,2]
[351223648,1738447841137,-500.0,0.00016575,2]
[351223649,1738447841146,-500.0,0.00016575,2]
[351223650,1738447841155,-500.0,0.00016575,2]
[351223651,1738447841165,-500.0,0.00016575,2]
[351223652,1738447841174,-500.0,0.00016575,2]
[351223653,1738447841183,-958.06,0.00016575,2]
[351223654,1738447841195,-151.0,0.00016575,2]
[351223655,1738447841204,-500.0,0.00016575,2]
[351223656,1738447841213,-500.0,0.00016575,2]
[351223657,1738447841223,-267.89,0.00016575,2]
[351223658,1738447841232,-500.0,0.00016575,2]
[351223659,1738447841241,-425.14,0.00016575,2]
[351223660,1738447841251,-427.77575011,0.00016575,2]
[351223661,1738447841260,-500.0,0.00016575,2]
[351223662,1738447841269,-742.59,0.00016575,2]
[351223663,1738447841279,-500.0,0.00016575,2]
[351223664,1738447841288,-500.0,0.00016575,2]
[351223665,1738447841297,-651.54,0.00016575,2]
[351223666,1738447841307,-500.0,0.00016575,2]
[351223667,1738447841316,-657.73,0.00016575,2]
[351223668,1738447841325,-500.0,0.00016575,2]
[351223669,1738447841334,-550.33,0.00016575,2]
[351223670,1738447841343,-151.0,0.00016575,2]
[351223671,1738447841353,-500.0,0.00016575,2]
[351223672,1738447841363,-3032.87,0.00016575,2]
[351223673,1738447841374,-500.0,0.00016575,2]
[351223674,1738447841383,-697.98,0.00016575,2]
[351223675,1738447841392,-300.50422536,0.00016575,2]
[351223676,1738447841409,-199.49577464,0.00016575,2]
[351223677,1738447841420,-500.0,0.00016575,2]
[351223678,1738447841430,-919.44,0.00016575,2]
[351223679,1738447841443,-500.0,0.00016575,2]
[351223680,1738447841453,-500.0,0.00016575,2]
[351223681,1738447841462,-500.0,0.00016575,2]
[351223682,1738447841472,-500.0,0.00016575,2]
[351223683,1738447841481,-500.0,0.00016575,2]
[351223684,1738447841492,-690.22,0.00016575,2]
[351223685,1738447841502,-2099.35,0.00016575,2]
[351223686,1738447841518,-500.0,0.00016575,2]
[351223687,1738447841527,-4808.22,0.00016575,2]
[351223688,1738447841538,-500.0,0.00016575,2]
[351223689,1738447841547,-153.0,0.00016575,2]
[351223690,1738447841557,-153.0,0.00016575,2]
[351223691,1738447841568,-153.0,0.000166,2]
[351223692,1738447841578,-153.0,0.000166,2]
[351223693,1738447841588,-983.75650406,0.00016608,2]
[351223694,1738447841598,-420.0,0.00016654,2]
[351223695,1738447841607,-153.0,0.000167,2]
[351223696,1738447841616,-792.25,0.0001671,2]
[351223697,1738447841626,-300.21185406,0.00016711,2]
[351223698,1738447841635,-792.25,0.00016711,2]
[351223699,1738447841644,-792.25,0.00016711,2]
[351223700,1738447841653,-500.0,0.00016712,2]
[351223701,1738447841663,-430.98958216,0.00016712,2]
[351223702,1738447841673,-151.0,0.00016712,2]
[351223703,1738447841683,-151.0,0.00016712,2]
[351223704,1738447841693,-194.134078,0.00016712,2]
[351223705,1738447841703,-151.0,0.00016712,2]
[351223706,1738447841713,-500.0,0.00016712,2]
[351223707,1738447841722,-554.95,0.00016712,2]
[351223708,1738447841732,-256.808065,0.00016712,2]
[351223709,1738447841741,-500.0,0.00016712,2]
[351223710,1738447841750,-500.0,0.00016712,2]
[351223711,1738447841759,-151.0,0.00016712,2]
[351223712,1738447841769,-500.0,0.00016712,2]
[351223713,1738447841778,-500.0,0.00016712,2]
[351223714,1738447841787,-500.0,0.00016712,2]
[351223715,1738447841796,-500.0,0.00016712,2]
[351223716,1738447841805,-500.0,0.00016712,2]
[351223717,1738447841815,-437.69418435,0.00016712,2]
[351223718,1738447841824,-500.0,0.00016712,2]
[351223719,1738447841833,-500.0,0.00016712,2]
[351223720,1738447841842,-500.0,0.00016712,2]
[351223721,1738447841851,-500.0,0.00016712,2]
[351223722,1738447841861,-500.0,0.00016712,2]
[351223723,1738447841871,-500.0,0.00016712,2]
[351223724,1738447841881,-555.65053186,0.00016712,2]
[351223725,1738447841891,-500.0,0.00016712,2]
[351223726,1738447841900,-500.0,0.00016712,2]
[351223727,1738447841909,-639.77,0.00016712,2]
[351223728,1738447841919,-500.0,0.00016712,2]
[351223729,1738447841929,-500.0,0.00016712,2]
[351223730,1738447841938,-649.86,0.00016712,2]
[351223731,1738447841951,-2056.33,0.00016712,2]
[351223732,1738447841961,-500.0,0.00016712,2]
[351223733,1738447841970,-500.0,0.00016712,2]
[351223734,1738447841979,-500.0,0.00016712,2]
[351223735,1738447841988,-500.0,0.00016712,2]
[351223736,1738447841997,-958.06,0.00016712,2]
[351223737,1738447842006,-500.0,0.00016712,2]
[351223738,1738447842016,-397.00317126,0.00016712,2]
[351223739,1738447842028,-102.99682874,0.00016712,2]
[351223740,1738447842037,-500.0,0.00016712,2]
[351223741,1738447842047,-258.38638856,0.00016712,2]
[351223742,1738447842058,-241.61361144,0.00016712,2]
[351223743,1738447842067,-742.59,0.00016712,2]
[351223744,1738447842076,-373.85737912,0.00016712,2]
[351223745,1738447842087,-126.14262088,0.00016712,2]
[351223746,1738447842096,-651.54,0.00016712,2]
[351223747,1738447842105,-500.0,0.00016712,2]
[351223748,1738447842114,-657.73,0.00016712,2]
[351223749,1738447842123,-500.0,0.00016712,2]
[351223750,1738447842132,-550.33,0.00016712,2]
[351223751,1738447842142,-500.0,0.00016712,2]
[351223752,1738447842150,-1676.04322243,0.00016712,2]
[351223760,1738447842364,-519.4,0.00016438,2]
[351223762,1738447842374,-519.4,0.00016575,2]
[351223763,1738447842384,-1356.82677757,0.00016712,2]
[351223764,1738447842393,-500.0,0.00016712,2]
[351223765,1738447842403,-697.98,0.00016712,2]
[351223766,1738447842412,-500.0,0.00016712,2]
[351223767,1738447842421,-919.44,0.00016712,2]
[351223768,1738447842431,-500.0,0.00016712,2]
[351223769,1738447842440,-606.501,0.00016712,2]
[351223770,1738447842450,-500.0,0.00016712,2]
[351223771,1738447842459,-500.0,0.00016712,2]
[351223772,1738447842469,-500.0,0.00016712,2]
[351223773,1738447842479,-690.22,0.00016712,2]
[351223774,1738447842488,-2099.35,0.00016712,2]
[351223776,1738447842498,-4808.22,0.00016712,2]
[351223778,1738447842511,-500.0,0.00016712,2]
[351223780,1738447842521,-519.4,0.00016712,2]
[351223782,1738447842531,-1118.60768763,0.0001675,2]
[351223784,1738447842540,-792.25,0.00016799,2]
[351223786,1738447842550,-8223.33,0.000168,2]
[351223788,1738447842559,-7771.8,0.000168,2]
[351223790,1738447842568,-893.28,0.000168,2]
[351223792,1738447842577,-160.8124,0.000168,2]
[351223794,1738447842588,-151.0,0.000168,2]
[351223796,1738447842597,-151.0,0.000168,2]
[351223798,1738447842606,-151.0,0.00016816,2]
[351223800,1738447842615,-792.25,0.00016848,2]
[351223802,1738447842625,-792.25,0.00016848,2]
[351223804,1738447842634,-792.25,0.00016848,2]
[351223805,1738447842643,-792.25,0.00016848,2]
[351223807,1738447842652,-792.41,0.00016848,2]
[351223809,1738447842661,-500.0,0.00016849,2]
[351223811,1738447842671,-151.0,0.00016849,2]
[351223812,1738447842680,-151.0,0.00016849,2]
[351223814,1738447842689,-500.0,0.00016849,2]
[351223816,1738447842699,-589.58,0.00016849,2]
[351223817,1738447842709,-500.0,0.00016849,2]
[351223818,1738447842718,-151.0,0.00016849,2]
[351223819,1738447842728,-331.69823913,0.00016849,2]
[351223820,1738447842738,-500.0,0.00016849,2]
[351223821,1738447842747,-500.0,0.00016849,2]
[351223822,1738447842756,-500.0,0.00016849,2]
[351223823,1738447842766,-500.0,0.00016849,2]
[351223824,1738447842775,-500.0,0.00016849,2]
[351223825,1738447842784,-500.0,0.00016849,2]
[351223826,1738447842793,-311.72,0.00016849,2]
[351223827,1738447842803,-500.0,0.00016849,2]
[351223828,1738447842813,-258.75034146,0.00016849,2]
[351223829,1738447842822,-500.0,0.00016849,2]
[351223830,1738447842831,-500.0,0.00016849,2]
[351223831,1738447842840,-500.0,0.00016849,2]
[351223832,1738447842850,-500.0,0.00016849,2]
[351223834,1738447842859,-649.86,0.00016849,2]
[351223835,1738447842868,-2056.33,0.00016849,2]
[351223836,1738447842878,-500.0,0.00016849,2]